[Event "*** Titled Tuesday Blitz"]
[Site "Chess.com"]
[Date "2021.04.06"]
[Round "5"]
[White "Gusarov91"]
[Black "Treacherous_horse64"]
[Result "1-0"]
[WhiteElo "2629"]
[BlackElo "2417"]
[TimeControl "180+1"]
[EndTime "10:59:13 PDT"]
[Termination "Gusarov91 won by checkmate"]

1. d4 {[%clk 0:03:00.9]} 1... d5 {[%clk 0:02:58.2]} 2. Nf3 {[%clk 0:03:00.9]}
2... Nf6 {[%clk 0:02:57.9]} 3. c4 {[%clk 0:03:01]} 3... e6 {[%clk 0:02:57.9]} 4.
g3 {[%clk 0:03:00.9]} 4... dxc4 {[%clk 0:02:53.8]} 5. Bg2 {[%clk 0:03:00.6]}
5... c5 {[%clk 0:02:53.7]} 6. O-O {[%clk 0:02:59.7]} 6... Nc6 {[%clk 0:02:51.5]}
7. Qa4 {[%clk 0:02:54.5]} 7... cxd4 {[%clk 0:02:44.7]} 8. Nxd4 {[%clk
0:02:53.4]} 8... Qxd4 {[%clk 0:02:42]} 9. Bxc6+ {[%clk 0:02:53.1]} 9... bxc6
{[%clk 0:02:36]} 10. Qxc6+ {[%clk 0:02:52.8]} 10... Qd7 {[%clk 0:02:33.1]} 11.
Qxa8 {[%clk 0:02:51.6]} 11... Bc5 {[%clk 0:02:33]} 12. Nc3 {[%clk 0:02:45]}
12... O-O {[%clk 0:02:11.6]} 13. Rd1 {[%clk 0:02:43.3]} 13... Qc7 {[%clk
0:01:58.3]} 14. Qg2 {[%clk 0:02:30]} 14... Bb7 {[%clk 0:01:51.6]} 15. e4 {[%clk
0:02:16.3]} 15... Ng4 {[%clk 0:01:50.8]} 16. Rf1 {[%clk 0:01:54]} 16... f5
{[%clk 0:01:41.8]} 17. Bf4 {[%clk 0:01:39.6]} 17... e5 {[%clk 0:01:36.3]} 18.
Bd2 {[%clk 0:01:17.7]} 18... fxe4 {[%clk 0:01:34.5]} 19. Be3 {[%clk 0:01:13.8]}
19... Nxe3 {[%clk 0:01:10.5]} 20. fxe3 {[%clk 0:01:13.6]} 20... Bxe3+ {[%clk
0:01:11.4]} 21. Kh1 {[%clk 0:01:12.7]} 21... Rf3 {[%clk 0:01:10.1]} 22. Rad1
{[%clk 0:01:03.2]} 22... Bd4 {[%clk 0:01:08.8]} 23. Nb5 {[%clk 0:00:55.4]} 23...
Qf7 {[%clk 0:00:58.8]} 24. Nd6 {[%clk 0:00:52.4]} 24... Qd5 {[%clk 0:00:41.6]}
25. Nxb7 {[%clk 0:00:50.3]} 25... Qxb7 {[%clk 0:00:42.5]} 26. b3 {[%clk
0:00:42.3]} 26... c3 {[%clk 0:00:41.7]} 27. Rde1 {[%clk 0:00:35.9]} 27... Qc6
{[%clk 0:00:40]} 28. Re2 {[%clk 0:00:34.6]} 28... h6 {[%clk 0:00:34.4]} 29. Rfe1
{[%clk 0:00:32.7]} 29... Rd3 {[%clk 0:00:22.7]} 30. Rc1 {[%clk 0:00:19.3]} 30...
Be3 {[%clk 0:00:08.6]} 31. Rf1 {[%clk 0:00:18.2]} 31... Bd2 {[%clk 0:00:05.9]}
32. Qxe4 {[%clk 0:00:18.4]} 32... Qxe4+ {[%clk 0:00:05.5]} 33. Rxe4 {[%clk
0:00:19.3]} 33... c2 {[%clk 0:00:06.4]} 34. Rc4 {[%clk 0:00:19.9]} 34... c1=Q
{[%clk 0:00:05.1]} 35. Rcxc1 {[%clk 0:00:20.8]} 35... Bxc1 {[%clk 0:00:06]} 36.
Rxc1 {[%clk 0:00:21.4]} 36... Rd2 {[%clk 0:00:06.9]} 37. Rc8+ {[%clk 0:00:21.4]}
37... Kh7 {[%clk 0:00:07]} 38. a4 {[%clk 0:00:19.7]} 38... a5 {[%clk 0:00:06]}
39. Re8 {[%clk 0:00:19.6]} 39... Rd3 {[%clk 0:00:05.9]} 40. Rxe5 {[%clk
0:00:19.9]} 40... Rxb3 {[%clk 0:00:06.1]} 41. Rxa5 {[%clk 0:00:20.5]} 41... Rb2
{[%clk 0:00:06.7]} 42. Ra6 {[%clk 0:00:20]} 42... Ra2 {[%clk 0:00:07.6]} 43. Kg1
{[%clk 0:00:20]} 43... Kg8 {[%clk 0:00:07.5]} 44. Ra7 {[%clk 0:00:20.1]} 44...
Kh7 {[%clk 0:00:08]} 45. h4 {[%clk 0:00:20.7]} 45... h5 {[%clk 0:00:07.8]} 46.
Ra5 {[%clk 0:00:21.2]} 46... Kh6 {[%clk 0:00:08.1]} 47. Kf1 {[%clk 0:00:21.8]}
47... g6 {[%clk 0:00:08.6]} 48. Ra6 {[%clk 0:00:21.6]} 48... Ra1+ {[%clk
0:00:09.5]} 49. Kf2 {[%clk 0:00:21.9]} 49... Ra3 {[%clk 0:00:10.3]} 50. Kg2
{[%clk 0:00:22]} 50... Kh7 {[%clk 0:00:11.2]} 51. Ra7+ {[%clk 0:00:22]} 51...
Kh6 {[%clk 0:00:12.1]} 52. Ra8 {[%clk 0:00:22.6]} 52... Kh7 {[%clk 0:00:13]} 53.
Kh3 {[%clk 0:00:22.7]} 53... Kh6 {[%clk 0:00:13.9]} 54. a5 {[%clk 0:00:22.7]}
54... Kh7 {[%clk 0:00:14.8]} 55. a6 {[%clk 0:00:23]} 55... Kg7 {[%clk
0:00:15.1]} 56. Kg2 {[%clk 0:00:23.3]} 56... Ra1 {[%clk 0:00:16]} 57. Kf3 {[%clk
0:00:23.7]} 57... Ra3+ {[%clk 0:00:16.9]} 58. Kf4 {[%clk 0:00:24]} 58... Ra4+
{[%clk 0:00:17.8]} 59. Ke5 {[%clk 0:00:24.6]} 59... Ra5+ {[%clk 0:00:18.2]} 60.
Ke6 {[%clk 0:00:24.8]} 60... Ra1 {[%clk 0:00:18.4]} 61. Kd6 {[%clk 0:00:24.2]}
61... Rd1+ {[%clk 0:00:18.6]} 62. Kc6 {[%clk 0:00:24.6]} 62... Rb1 {[%clk
0:00:17.6]} 63. Rd8 {[%clk 0:00:22.1]} 63... Rc1+ {[%clk 0:00:17.3]} 64. Kb7
{[%clk 0:00:22]} 64... Rb1+ {[%clk 0:00:17.5]} 65. Ka8 {[%clk 0:00:21.9]} 65...
Ra1 {[%clk 0:00:17.9]} 66. a7 {[%clk 0:00:22.2]} 66... Rb1 {[%clk 0:00:18.2]}
67. Rd7+ {[%clk 0:00:22.3]} 67... Kh6 {[%clk 0:00:18.1]} 68. Rb7 {[%clk
0:00:23.2]} 68... Rf1 {[%clk 0:00:17.3]} 69. Kb8 {[%clk 0:00:20.2]} 69... Rf8+
{[%clk 0:00:17.2]} 70. Kc7 {[%clk 0:00:20.7]} 70... Rf7+ {[%clk 0:00:17.7]} 71.
Kb6 {[%clk 0:00:21.1]} 71... Rf6+ {[%clk 0:00:17.5]} 72. Kb5 {[%clk 0:00:21.2]}
72... Rf5+ {[%clk 0:00:17.8]} 73. Kb4 {[%clk 0:00:21]} 73... Rf1 {[%clk
0:00:08.2]} 74. a8=Q {[%clk 0:00:21]} 74... Rb1+ {[%clk 0:00:07.6]} 75. Kc3
{[%clk 0:00:20.7]} 75... Rb5 {[%clk 0:00:05.9]} 76. Qh8# {[%clk 0:00:20]} 1-0

[Event "*** Titled Tuesday Blitz"]
[Site "Chess.com"]
[Date "2021.04.06"]
[Round "5"]
[White "Angry_Twin"]
[Black "A-Fier"]
[Result "1-0"]
[WhiteElo "2886"]
[BlackElo "2720"]
[TimeControl "180+1"]
[EndTime "10:59:16 PDT"]
[Termination "Angry_Twin won by resignation"]

1. e4 {[%clk 0:03:00.9]} 1... c5 {[%clk 0:03:00.1]} 2. Nf3 {[%clk 0:03:01]} 2...
e6 {[%clk 0:03:00.5]} 3. d4 {[%clk 0:03:01.1]} 3... cxd4 {[%clk 0:03:01]} 4.
Nxd4 {[%clk 0:03:02]} 4... Nf6 {[%clk 0:03:01.4]} 5. Nc3 {[%clk 0:03:02.2]} 5...
Nc6 {[%clk 0:03:01.8]} 6. Nxc6 {[%clk 0:03:01.3]} 6... bxc6 {[%clk 0:03:02.2]}
7. e5 {[%clk 0:03:01.8]} 7... Nd5 {[%clk 0:03:02.9]} 8. Ne4 {[%clk 0:03:02.3]}
8... Qc7 {[%clk 0:03:03.5]} 9. f4 {[%clk 0:03:02.7]} 9... Qb6 {[%clk 0:03:04.1]}
10. c4 {[%clk 0:03:02]} 10... Bb4+ {[%clk 0:03:04.7]} 11. Ke2 {[%clk 0:03:02.4]}
11... f5 {[%clk 0:03:05.4]} 12. Nf2 {[%clk 0:03:01.9]} 12... Ne7 {[%clk
0:03:01.3]} 13. Nd3 {[%clk 0:02:44.4]} 13... Ng6 {[%clk 0:02:44.2]} 14. Be3
{[%clk 0:02:39.9]} 14... Qa5 {[%clk 0:02:44.2]} 15. a3 {[%clk 0:02:22.1]} 15...
Be7 {[%clk 0:02:44]} 16. b4 {[%clk 0:02:22.3]} 16... Qd8 {[%clk 0:02:44]} 17. c5
{[%clk 0:02:20.9]} 17... O-O {[%clk 0:02:44.2]} 18. g3 {[%clk 0:02:13.8]} 18...
Ba6 {[%clk 0:02:44]} 19. Kf2 {[%clk 0:02:08]} 19... Bc4 {[%clk 0:02:42.3]} 20.
Bg2 {[%clk 0:02:07.6]} 20... Rf7 {[%clk 0:02:27.8]} 21. Qc2 {[%clk 0:02:06.9]}
21... Bd5 {[%clk 0:02:27.9]} 22. Nc1 {[%clk 0:01:57.4]} 22... Nf8 {[%clk
0:02:27]} 23. Ne2 {[%clk 0:01:57.4]} 23... g5 {[%clk 0:02:26.7]} 24. Nd4 {[%clk
0:01:56.5]} 24... Ng6 {[%clk 0:02:26.5]} 25. Bxd5 {[%clk 0:01:54.4]} 25... exd5
{[%clk 0:02:23.6]} 26. Nxf5 {[%clk 0:01:53.2]} 26... gxf4 {[%clk 0:02:23.4]} 27.
gxf4 {[%clk 0:01:50.5]} 27... d4 {[%clk 0:02:14.1]} 28. Bxd4 {[%clk 0:01:45.7]}
28... Qf8 {[%clk 0:02:09.7]} 29. Nxe7+ {[%clk 0:01:40]} 29... Qxe7 {[%clk
0:02:10.6]} 30. Rhg1 {[%clk 0:00:43.6]} 30... Qh4+ {[%clk 0:02:08.7]} 31. Ke2
{[%clk 0:00:34.5]} 31... Rxf4 {[%clk 0:02:01.3]} 32. Be3 {[%clk 0:00:16.2]}
32... Re4 {[%clk 0:01:59.1]} 33. Raf1 {[%clk 0:00:08.1]} 33... Qxh2+ {[%clk
0:01:57.1]} 34. Rf2 {[%clk 0:00:04.1]} 34... Qxg1 {[%clk 0:01:57.1]} 35. Qxe4
{[%clk 0:00:04.3]} 35... Qg3 {[%clk 0:01:37.4]} 36. e6 {[%clk 0:00:03.7]} 36...
Re8 {[%clk 0:01:38.1]} 37. Qf5 {[%clk 0:00:03.6]} 37... Rxe6 {[%clk 0:01:34.2]}
38. Rf3 {[%clk 0:00:04.1]} 38... Qh2+ {[%clk 0:01:31.9]} 39. Kd1 {[%clk
0:00:04.2]} 39... Qe5 {[%clk 0:01:24.9]} 40. Qf7+ {[%clk 0:00:04.3]} 40... Kh8
{[%clk 0:01:25.1]} 41. Bd2 {[%clk 0:00:02.5]} 41... Qg7 {[%clk 0:00:52.8]} 42.
Bc3 {[%clk 0:00:01.9]} 42... Ne5 {[%clk 0:00:53.5]} 43. Qf8+ {[%clk 0:00:02.3]}
43... Qxf8 {[%clk 0:00:53.8]} 44. Rxf8+ {[%clk 0:00:03.2]} 44... Kg7 {[%clk
0:00:54.7]} 45. Rf5 {[%clk 0:00:04.1]} 45... Kg6 {[%clk 0:00:43.7]} 46. Rxe5
{[%clk 0:00:04.5]} 46... Rf6 {[%clk 0:00:44.6]} 47. Re2 {[%clk 0:00:04.4]} 47...
Rf3 {[%clk 0:00:44.3]} 48. Kc2 {[%clk 0:00:05.1]} 48... h5 {[%clk 0:00:44.2]}
49. Rg2+ {[%clk 0:00:05.6]} 49... Kf5 {[%clk 0:00:44.2]} 50. Rd2 {[%clk
0:00:06.5]} 50... Ke6 {[%clk 0:00:43.4]} 51. Re2+ {[%clk 0:00:06.7]} 51... Kf7
{[%clk 0:00:42.5]} 52. Rd2 {[%clk 0:00:07.1]} 52... Ke6 {[%clk 0:00:42.4]} 53.
Rd6+ {[%clk 0:00:07.7]} 53... Ke7 {[%clk 0:00:42.9]} 54. Rh6 {[%clk 0:00:08.2]}
54... Rf5 {[%clk 0:00:43.3]} 55. Rh7+ {[%clk 0:00:08.2]} 55... Ke6 {[%clk
0:00:42.9]} 56. Rh6+ {[%clk 0:00:09.1]} 56... Ke7 {[%clk 0:00:43]} 57. Bd2
{[%clk 0:00:09.8]} 57... a6 {[%clk 0:00:42.4]} 58. Kd3 {[%clk 0:00:10.1]} 58...
Rf3+ {[%clk 0:00:42]} 59. Be3 {[%clk 0:00:09.5]} 59... Rh3 {[%clk 0:00:42.3]}
60. Ke4 {[%clk 0:00:10]} 60... Kd8 {[%clk 0:00:41.6]} 61. a4 {[%clk 0:00:09]}
61... Kc7 {[%clk 0:00:41.8]} 62. Bf4+ {[%clk 0:00:09.4]} 62... Kb7 {[%clk
0:00:41.8]} 63. Rh7 {[%clk 0:00:09.9]} 63... Kc8 {[%clk 0:00:42.2]} 64. Rh8+
{[%clk 0:00:10.5]} 64... Kb7 {[%clk 0:00:42.5]} 65. Rd8 {[%clk 0:00:11.2]} 65...
Rb3 {[%clk 0:00:42]} 66. Rxd7+ {[%clk 0:00:11.6]} 66... Kc8 {[%clk 0:00:42.5]}
67. Rc7+ {[%clk 0:00:10.6]} 67... Kd8 {[%clk 0:00:43.1]} 68. Rxc6 {[%clk
0:00:11.1]} 68... Rxb4+ {[%clk 0:00:43.6]} 69. Kf5 {[%clk 0:00:11.6]} 69... Rxa4
{[%clk 0:00:44]} 70. Bg5+ {[%clk 0:00:11.2]} 70... Kd7 {[%clk 0:00:44]} 71. Rd6+
{[%clk 0:00:11.8]} 71... Kc7 {[%clk 0:00:44.6]} 72. Bd8+ {[%clk 0:00:12.3]}
72... Kc8 {[%clk 0:00:45.2]} 73. c6 {[%clk 0:00:12.5]} 73... Rb4 {[%clk
0:00:43]} 74. Ke6 {[%clk 0:00:11.8]} 74... Re4+ {[%clk 0:00:42]} 75. Kf5 {[%clk
0:00:11.1]} 75... Rb4 {[%clk 0:00:41.4]} 76. Ke6 {[%clk 0:00:05.7]} 76... Re4+
{[%clk 0:00:41.1]} 77. Kd5 {[%clk 0:00:05.5]} 77... Re1 {[%clk 0:00:41.6]} 78.
Kc5 {[%clk 0:00:05.8]} 78... Rc1+ {[%clk 0:00:38.9]} 79. Kb6 {[%clk 0:00:06.2]}
79... h4 {[%clk 0:00:39.3]} 80. Ka7 {[%clk 0:00:05.8]} 80... h3 {[%clk
0:00:30.4]} 81. Bb6 {[%clk 0:00:06]} 81... Rxc6 {[%clk 0:00:27.5]} 82. Rxc6+
{[%clk 0:00:06.9]} 82... Kd7 {[%clk 0:00:28.4]} 83. Rh6 {[%clk 0:00:07.5]} 1-0

[Event "*** Titled Tuesday Blitz"]
[Site "Chess.com"]
[Date "2021.04.06"]
[Round "5"]
[White "AldokhinIvan"]
[Black "kuli4ik"]
[Result "0-1"]
[WhiteElo "2527"]
[BlackElo "2877"]
[TimeControl "180+1"]
[EndTime "10:59:16 PDT"]
[Termination "kuli4ik won by resignation"]

1. e4 {[%clk 0:02:59.2]} 1... Nf6 {[%clk 0:02:59.8]} 2. e5 {[%clk 0:02:59.1]}
2... Nd5 {[%clk 0:02:58.9]} 3. Nc3 {[%clk 0:02:57.2]} 3... c6 {[%clk 0:02:58.6]}
4. d4 {[%clk 0:02:50.9]} 4... d6 {[%clk 0:02:56.6]} 5. f4 {[%clk 0:02:42.3]}
5... Bf5 {[%clk 0:02:53.5]} 6. Nxd5 {[%clk 0:02:32.3]} 6... cxd5 {[%clk
0:02:52.9]} 7. Bd3 {[%clk 0:02:30.6]} 7... Bxd3 {[%clk 0:02:51]} 8. Qxd3 {[%clk
0:02:30.4]} 8... Nc6 {[%clk 0:02:50.3]} 9. Nf3 {[%clk 0:02:17.1]} 9... e6 {[%clk
0:02:50.6]} 10. O-O {[%clk 0:02:16.3]} 10... g6 {[%clk 0:02:49]} 11. c3 {[%clk
0:01:55]} 11... Bg7 {[%clk 0:02:48.5]} 12. exd6 {[%clk 0:01:46.4]} 12... Qxd6
{[%clk 0:02:47.7]} 13. Ne5 {[%clk 0:01:44.4]} 13... O-O {[%clk 0:02:45.5]} 14.
Bd2 {[%clk 0:01:42.1]} 14... Rac8 {[%clk 0:02:44]} 15. Kh1 {[%clk 0:01:40.7]}
15... Ne7 {[%clk 0:02:44]} 16. Rae1 {[%clk 0:01:36.2]} 16... Qa6 {[%clk
0:02:41.2]} 17. Qxa6 {[%clk 0:01:26.4]} 17... bxa6 {[%clk 0:02:42.1]} 18. Nd7
{[%clk 0:01:23.9]} 18... Rfd8 {[%clk 0:02:41.2]} 19. Nc5 {[%clk 0:01:23.9]}
19... Rc6 {[%clk 0:02:40.3]} 20. b4 {[%clk 0:01:19.7]} 20... h5 {[%clk
0:02:39.9]} 21. g3 {[%clk 0:01:18.1]} 21... Nf5 {[%clk 0:02:39.2]} 22. Kg2
{[%clk 0:01:14.8]} 22... Nd6 {[%clk 0:02:39.2]} 23. Bc1 {[%clk 0:01:08.9]} 23...
a5 {[%clk 0:02:36.4]} 24. bxa5 {[%clk 0:00:47]} 24... Nc4 {[%clk 0:02:35.3]} 25.
Nb3 {[%clk 0:00:43.3]} 25... Rb8 {[%clk 0:02:29.6]} 26. h3 {[%clk 0:00:36]}
26... Rb5 {[%clk 0:02:26.6]} 27. g4 {[%clk 0:00:30.5]} 27... hxg4 {[%clk
0:02:26.1]} 28. hxg4 {[%clk 0:00:30.2]} 28... Nxa5 {[%clk 0:02:26.4]} 29. Nc5
{[%clk 0:00:30.4]} 29... Nb7 {[%clk 0:02:09.5]} 30. Nd7 {[%clk 0:00:17.5]} 30...
Nd6 {[%clk 0:01:49.3]} 31. Nc5 {[%clk 0:00:15.2]} 31... Ne4 {[%clk 0:01:40.1]}
32. a4 {[%clk 0:00:12.3]} 32... Ra5 {[%clk 0:01:33.3]} 33. Nxe4 {[%clk
0:00:12.2]} 33... dxe4 {[%clk 0:01:33.6]} 34. Rxe4 {[%clk 0:00:12.6]} 34... Rxc3
{[%clk 0:01:33.2]} 35. f5 {[%clk 0:00:12.7]} 35... gxf5 {[%clk 0:01:26.2]} 36.
gxf5 {[%clk 0:00:13]} 36... Rxf5 {[%clk 0:01:25.2]} 37. Rxf5 {[%clk 0:00:11.5]}
37... exf5 {[%clk 0:01:26.1]} 38. Re8+ {[%clk 0:00:11.3]} 38... Kh7 {[%clk
0:01:26.1]} 39. Be3 {[%clk 0:00:11.3]} 39... f4 {[%clk 0:01:05.6]} 40. Bxf4
{[%clk 0:00:10]} 40... Bxd4 {[%clk 0:01:05.7]} 41. Re7 {[%clk 0:00:10.2]} 41...
Kg6 {[%clk 0:01:05]} 42. Rd7 {[%clk 0:00:09.9]} 42... Rc4 {[%clk 0:01:03.1]} 43.
a5 {[%clk 0:00:07.6]} 43... Ra4 {[%clk 0:01:02.4]} 44. Bb8 {[%clk 0:00:06.3]}
44... Bc3 {[%clk 0:00:39.2]} 45. Bxa7 {[%clk 0:00:05.3]} 45... Bxa5 {[%clk
0:00:35.9]} 46. Be3 {[%clk 0:00:04.8]} 46... Bc3 {[%clk 0:00:31.6]} 47. Ra7
{[%clk 0:00:04.5]} 47... Rc4 {[%clk 0:00:27.6]} 48. Kf3 {[%clk 0:00:04.9]} 48...
Be5 {[%clk 0:00:25.6]} 49. Ra6+ {[%clk 0:00:05.1]} 49... f6 {[%clk 0:00:25.9]}
50. Ra7 {[%clk 0:00:04.8]} 50... Rc3 {[%clk 0:00:25.5]} 51. Rd7 {[%clk 0:00:05]}
51... Kf5 {[%clk 0:00:24]} 52. Ke2 {[%clk 0:00:05.1]} 52... Ke4 {[%clk
0:00:24.2]} 53. Bd2 {[%clk 0:00:04.9]} 53... Ra3 {[%clk 0:00:24.1]} 54. Rb7
{[%clk 0:00:04.6]} 54... Ra2 {[%clk 0:00:23.2]} 55. Rb4+ {[%clk 0:00:04.6]}
55... Bd4 {[%clk 0:00:23.6]} 56. Rc4 {[%clk 0:00:01.8]} 56... f5 {[%clk
0:00:21.9]} 57. Rc8 {[%clk 0:00:02.4]} 57... f4 {[%clk 0:00:20.9]} 58. Re8+
{[%clk 0:00:02.7]} 58... Be5 {[%clk 0:00:21.3]} 59. Kd1 {[%clk 0:00:01.7]} 59...
Ra3 {[%clk 0:00:14]} 60. Bc1 {[%clk 0:00:01.3]} 60... Rb3 {[%clk 0:00:12.3]} 61.
Kc2 {[%clk 0:00:02]} 61... Rc3+ {[%clk 0:00:12.6]} 62. Kd2 {[%clk 0:00:02.4]}
62... Rd3+ {[%clk 0:00:11.8]} 63. Kc2 {[%clk 0:00:02.8]} 63... Rd5 {[%clk
0:00:09.9]} 64. Bb2 {[%clk 0:00:03.7]} 64... f3 {[%clk 0:00:10.1]} 65. Rxe5+
{[%clk 0:00:03.2]} 65... Rxe5 {[%clk 0:00:10.4]} 66. Bxe5 {[%clk 0:00:04.1]}
66... f2 {[%clk 0:00:10.8]} 67. Kd2 {[%clk 0:00:03.4]} 67... f1=Q {[%clk
0:00:11.1]} 68. Bc3 {[%clk 0:00:03.9]} 68... Qd3+ {[%clk 0:00:10.9]} 69. Kc1
{[%clk 0:00:04.3]} 69... Qxc3+ {[%clk 0:00:11.2]} 0-1

[Event "*** Titled Tuesday Blitz"]
[Site "Chess.com"]
[Date "2021.04.06"]
[Round "5"]
[White "Pliukha_Mikhail"]
[Black "Chesswizard_2007"]
[Result "0-1"]
[WhiteElo "2499"]
[BlackElo "2702"]
[TimeControl "180+1"]
[EndTime "10:59:30 PDT"]
[Termination "Chesswizard_2007 won by checkmate"]

1. e4 {[%clk 0:03:00.2]} 1... c5 {[%clk 0:02:44]} 2. d4 {[%clk 0:03:00.1]} 2...
cxd4 {[%clk 0:02:43]} 3. c3 {[%clk 0:03:00.8]} 3... Nf6 {[%clk 0:02:42.6]} 4. e5
{[%clk 0:03:01.2]} 4... Nd5 {[%clk 0:02:43]} 5. Nf3 {[%clk 0:03:02.1]} 5... d6
{[%clk 0:02:42.5]} 6. cxd4 {[%clk 0:03:02.1]} 6... Nc6 {[%clk 0:02:41.7]} 7. Bc4
{[%clk 0:03:02.4]} 7... e6 {[%clk 0:02:39.5]} 8. O-O {[%clk 0:03:01.6]} 8...
dxe5 {[%clk 0:02:38.7]} 9. Nxe5 {[%clk 0:03:01.5]} 9... Nxe5 {[%clk 0:02:35.9]}
10. dxe5 {[%clk 0:03:02.4]} 10... Be7 {[%clk 0:02:36.5]} 11. Nd2 {[%clk
0:03:01.7]} 11... O-O {[%clk 0:02:35]} 12. Ne4 {[%clk 0:03:01.8]} 12... b6
{[%clk 0:02:28.4]} 13. Qh5 {[%clk 0:02:57.9]} 13... Bb7 {[%clk 0:02:24.3]} 14.
Bg5 {[%clk 0:02:45]} 14... Bxg5 {[%clk 0:02:19.4]} 15. Nxg5 {[%clk 0:02:45.8]}
15... h6 {[%clk 0:02:19.9]} 16. Ne4 {[%clk 0:02:43]} 16... Nf4 {[%clk
0:02:18.1]} 17. Qg4 {[%clk 0:02:42.9]} 17... Bxe4 {[%clk 0:02:15.8]} 18. Qxf4
{[%clk 0:02:43.4]} 18... Bb7 {[%clk 0:02:12.7]} 19. Rfd1 {[%clk 0:02:43.3]}
19... Qe7 {[%clk 0:02:12.4]} 20. Rac1 {[%clk 0:02:42.1]} 20... Rac8 {[%clk
0:01:59.1]} 21. Bd3 {[%clk 0:02:36.7]} 21... Rxc1 {[%clk 0:01:49.8]} 22. Rxc1
{[%clk 0:02:37.6]} 22... Rd8 {[%clk 0:01:48.6]} 23. Rd1 {[%clk 0:02:34]} 23...
Ba6 {[%clk 0:01:45.1]} 24. Qf3 {[%clk 0:02:29.7]} 24... Bxd3 {[%clk 0:01:22.3]}
25. Rxd3 {[%clk 0:02:30.6]} 25... Rxd3 {[%clk 0:01:20.2]} 26. Qxd3 {[%clk
0:02:31.2]} 26... Qc5 {[%clk 0:01:21.1]} 27. Qd8+ {[%clk 0:02:27.1]} 27... Kh7
{[%clk 0:01:18.7]} 28. Qd3+ {[%clk 0:02:27.7]} 28... g6 {[%clk 0:01:18.7]} 29.
Qc3 {[%clk 0:02:27.1]} 29... Qd5 {[%clk 0:01:16.2]} 30. h3 {[%clk 0:02:20.2]}
30... Qxa2 {[%clk 0:01:13.1]} 31. f4 {[%clk 0:02:06.7]} 31... Qb1+ {[%clk
0:01:09.8]} 32. Kh2 {[%clk 0:02:07.1]} 32... h5 {[%clk 0:01:06.8]} 33. h4 {[%clk
0:01:59.1]} 33... Qf5 {[%clk 0:01:05.6]} 34. g3 {[%clk 0:01:59.7]} 34... Kg7
{[%clk 0:01:00.4]} 35. Qc7 {[%clk 0:01:59.6]} 35... Qb1 {[%clk 0:00:57.5]} 36.
Qxa7 {[%clk 0:01:46.6]} 36... Qxb2+ {[%clk 0:00:57.3]} 37. Kh3 {[%clk
0:01:47.2]} 37... Qb1 {[%clk 0:00:54.9]} 38. Kh2 {[%clk 0:01:47.4]} 38... Qc2+
{[%clk 0:00:55.2]} 39. Kh1 {[%clk 0:01:46.4]} 39... Qd1+ {[%clk 0:00:55.6]} 40.
Kh2 {[%clk 0:01:46.5]} 40... Qe2+ {[%clk 0:00:56.3]} 41. Kh1 {[%clk 0:01:46.6]}
41... Qf1+ {[%clk 0:00:56.4]} 42. Kh2 {[%clk 0:01:46.9]} 42... Qf2+ {[%clk
0:00:57]} 43. Kh3 {[%clk 0:01:47.3]} 43... Qg1 {[%clk 0:00:54.6]} 44. Qb7 {[%clk
0:01:43.6]} 44... b5 {[%clk 0:00:52.5]} 45. Qe4 {[%clk 0:01:13.6]} 45... b4
{[%clk 0:00:50.7]} 46. Qb7 {[%clk 0:01:08]} 46... b3 {[%clk 0:00:48.8]} 47. f5
{[%clk 0:00:53.4]} 47... exf5 {[%clk 0:00:30.9]} 48. e6 {[%clk 0:00:54]} 48...
Qf1+ {[%clk 0:00:29.6]} 49. Kh2 {[%clk 0:00:54]} 49... Qe2+ {[%clk 0:00:29.7]}
50. Kh3 {[%clk 0:00:54.6]} 50... Qxe6 {[%clk 0:00:29.8]} 51. Qb4 {[%clk
0:00:54.3]} 51... f4+ {[%clk 0:00:29.4]} 52. Kh2 {[%clk 0:00:54.9]} 52... Qe2+
{[%clk 0:00:28.9]} 53. Kg1 {[%clk 0:00:55.7]} 53... Qe3+ {[%clk 0:00:26.2]} 54.
Kh1 {[%clk 0:00:55.6]} 54... Qf3+ {[%clk 0:00:25.8]} 55. Kg1 {[%clk 0:00:55.6]}
55... Qxg3+ {[%clk 0:00:26.4]} 56. Kf1 {[%clk 0:00:55.1]} 56... Qxh4 {[%clk
0:00:26.6]} 57. Qxb3 {[%clk 0:00:53.2]} 57... Qf6 {[%clk 0:00:26.8]} 58. Kf2
{[%clk 0:00:53.1]} 58... Qd4+ {[%clk 0:00:26.1]} 59. Kg2 {[%clk 0:00:52.4]}
59... Qd2+ {[%clk 0:00:25.8]} 60. Kf1 {[%clk 0:00:48.8]} 60... Qc1+ {[%clk
0:00:25.9]} 61. Kg2 {[%clk 0:00:48.6]} 61... Qe3 {[%clk 0:00:26.5]} 62. Qb2+
{[%clk 0:00:48.1]} 62... Kh7 {[%clk 0:00:26.6]} 63. Qf6 {[%clk 0:00:48.3]} 63...
Qg3+ {[%clk 0:00:26.6]} 64. Kf1 {[%clk 0:00:48.7]} 64... Qd3+ {[%clk 0:00:26.2]}
65. Kg1 {[%clk 0:00:48]} 65... Qf5 {[%clk 0:00:27.1]} 66. Qe7 {[%clk 0:00:48.1]}
66... Kh6 {[%clk 0:00:26.8]} 67. Kf2 {[%clk 0:00:46.7]} 67... Kg7 {[%clk
0:00:24.1]} 68. Kf3 {[%clk 0:00:45.9]} 68... Qg4+ {[%clk 0:00:21.9]} 69. Kf2
{[%clk 0:00:46.5]} 69... f3 {[%clk 0:00:22.4]} 70. Qe5+ {[%clk 0:00:46.1]} 70...
Kh7 {[%clk 0:00:22.6]} 71. Qf6 {[%clk 0:00:45.7]} 71... Qg2+ {[%clk 0:00:20.9]}
72. Ke3 {[%clk 0:00:46.3]} 72... Qe2+ {[%clk 0:00:21.5]} 73. Kf4 {[%clk
0:00:45.2]} 73... Qe6 {[%clk 0:00:16.4]} 74. Qa1 {[%clk 0:00:38.2]} 74... f2
{[%clk 0:00:14]} 75. Kg3 {[%clk 0:00:38.8]} 75... Qf5 {[%clk 0:00:13.7]} 76. Qf1
{[%clk 0:00:38.9]} 76... g5 {[%clk 0:00:13.9]} 77. Kg2 {[%clk 0:00:37.5]} 77...
Qg4+ {[%clk 0:00:13.4]} 78. Kh2 {[%clk 0:00:37.1]} 78... Qf4+ {[%clk 0:00:14]}
79. Kh3 {[%clk 0:00:37]} 79... h4 {[%clk 0:00:14.9]} 80. Qd3+ {[%clk 0:00:35.4]}
80... Kh6 {[%clk 0:00:11.5]} 81. Qa6+ {[%clk 0:00:34.6]} 81... f6 {[%clk
0:00:10.2]} 82. Qf1 {[%clk 0:00:32.5]} 82... Qg3# {[%clk 0:00:09.7]} 0-1